fUST/lending_fUST_20240805
["ID","MTS","AMOUNT","RATE_DAILY","PERIOD"]
[334245378,1722857455388,-500.0,0.00042191,31]
[334245379,1722857455398,-500.0,0.00042191,31]
[334245380,1722857455407,-500.0,0.00042191,31]
[334245381,1722857455417,-500.0,0.00042191,31]
[334245382,1722857455427,-500.0,0.00042191,31]
[334245383,1722857455436,-1164.71,0.00042191,31]
[334245384,1722857455446,-943.44,0.00042191,31]
[334245385,1722857455455,-500.0,0.00042191,31]
[334245386,1722857455465,-744.2,0.00042191,31]
[334245387,1722857455475,-1086.27,0.00042191,31]
[334245388,1722857455485,-500.0,0.00042191,31]
[334245389,1722857455495,-937.46,0.00042191,31]
[334245390,1722857455504,-681.23,0.00042191,31]
[334245391,1722857455513,-500.0,0.00042191,31]
[334245392,1722857455523,-930.57,0.00042191,31]
[334245393,1722857455532,-500.0,0.00042191,31]
[334245394,1722857455541,-699.6,0.00042191,31]
[334245395,1722857455550,-500.0,0.00042191,31]
[334245396,1722857455559,-522.24563345,0.00042191,31]
[334245397,1722857455569,-500.0,0.00042191,31]
[334245398,1722857455578,-970.65,0.00042191,31]
[334245399,1722857455587,-500.0,0.00042191,31]
[334245400,1722857455597,-500.0,0.00042191,31]
[334245401,1722857455606,-527.93,0.00042191,31]
[334245402,1722857455615,-500.0,0.00042191,31]
[334245403,1722857455632,-500.0,0.00042191,31]
[334245404,1722857455644,-678.56,0.00042191,31]
[334245405,1722857455654,-694.73,0.00042191,31]
[334245406,1722857455663,-500.0,0.00042191,31]
[334245407,1722857455674,-500.0,0.00042191,31]
[334245408,1722857455683,-1469.45,0.00042191,31]
[334245409,1722857455692,-500.0,0.00042191,31]
[334245410,1722857455702,-500.0,0.00042191,31]
[334245411,1722857455711,-500.0,0.00042191,31]
[334245412,1722857455720,-500.0,0.00042191,31]
[334245413,1722857455728,-500.0,0.00042191,31]
[334245414,1722857455737,-500.0,0.00042191,31]
[334245415,1722857455746,-500.0,0.00042191,31]
[334245416,1722857455755,-500.0,0.00042191,31]
[334245417,1722857455765,-500.0,0.00042191,31]
[334245418,1722857455774,-500.0,0.00042191,31]
[334245419,1722857455783,-500.0,0.00042191,31]
[334245420,1722857455792,-1696.6,0.00042191,31]
[334245421,1722857455801,-1346.69,0.00042191,31]
[334245422,1722857455811,-500.0,0.00042191,31]
[334245423,1722857455820,-500.0,0.00042191,31]
[334245424,1722857455829,-500.0,0.00042191,31]
[334245425,1722857455839,-1007.11,0.00042191,31]
[334245426,1722857455848,-500.0,0.00042191,31]
[334245427,1722857455858,-500.0,0.00042191,31]
[334245428,1722857455868,-410.10705443,0.00042191,31]
[334245429,1722857455883,-500.0,0.00042191,31]
[334245430,1722857455893,-2461.13,0.00042191,31]
[334245431,1722857455902,-500.0,0.00042191,31]
[334245432,1722857455912,-1250.73,0.00042191,31]
[334245433,1722857455921,-556.88,0.00042191,31]
[334245434,1722857455930,-812.88,0.00042191,31]
[334245435,1722857455939,-500.0,0.00042191,31]
[334245436,1722857455949,-4695.83,0.00042191,31]
[334245437,1722857455959,-500.0,0.00042191,31]
[334245438,1722857455968,-500.0,0.00042191,31]
[334245439,1722857455977,-1520.75,0.00042191,31]
[334245440,1722857455987,-1135.4,0.00042191,31]
[334245441,1722857455996,-500.0,0.00042191,31]
[334245442,1722857456005,-500.0,0.00042191,31]
[334245443,1722857456014,-550.13,0.00042191,31]
[334245444,1722857456024,-500.0,0.00042191,31]
[334245445,1722857456033,-1006.52,0.00042191,31]
[334245446,1722857456042,-500.0,0.00042191,31]
[334245447,1722857456052,-517.75,0.00042191,31]
[334245448,1722857456061,-943.74,0.00042191,31]
[334245449,1722857456070,-500.0,0.00042191,31]
[334245450,1722857456080,-1202.14,0.00042191,31]
[334245451,1722857456089,-500.0,0.00042191,31]
[334245452,1722857456098,-433.81679369,0.00042191,31]
[334245453,1722857456107,-979.78,0.00042191,31]
[334245454,1722857456117,-500.0,0.00042191,31]
[334245455,1722857456136,-500.0,0.00042191,31]
[334245456,1722857456149,-1657.05,0.00042191,31]
[334245457,1722857456158,-500.0,0.00042191,31]
[334245458,1722857456168,-12120.82,0.00042191,31]
[334245459,1722857456177,-657.66,0.00042191,31]
[334245460,1722857456187,-2349.69,0.00042191,31]
[334245461,1722857456197,-1301.3,0.00042191,31]
[334245462,1722857456207,-2946.09,0.00042191,21]
[334245463,1722857456216,-733.55,0.00042191,31]
[334245464,1722857456229,-500.0,0.00042191,31]
[334245465,1722857456239,-500.0,0.00042191,31]
[334245466,1722857456249,-892.96,0.00042191,31]
[334245467,1722857456259,-500.0,0.00042191,31]
[334245468,1722857456268,-1769.88,0.00042191,31]
[334245469,1722857456278,-768.74,0.00042191,31]
[334245470,1722857456288,-1936.8,0.00042191,31]
[334245471,1722857456299,-898.41,0.00042191,31]
[334245472,1722857456309,-500.0,0.00042191,31]
[334245473,1722857456319,-500.0,0.00042191,31]
[334245474,1722857456329,-2906.96,0.00042191,31]
[334245475,1722857456340,-3090.56,0.00042191,31]
[334245476,1722857456350,-500.0,0.00042191,31]
[334245477,1722857456359,-500.0,0.00042191,31]
[334245478,1722857456370,-654.09,0.00042191,31]
[334245479,1722857456388,-733.41,0.00042191,31]
[334245480,1722857456399,-505.76,0.00042191,31]
[334245481,1722857456409,-500.0,0.00042191,31]
[334245482,1722857456418,-500.0,0.00042191,31]
[334245483,1722857456428,-500.0,0.00042191,31]
[334245484,1722857456438,-500.0,0.00042191,31]
[334245485,1722857456448,-500.0,0.00042191,31]
[334245486,1722857456459,-906.23,0.00042191,31]
[334245487,1722857456469,-500.0,0.00042191,31]
[334245488,1722857456478,-500.0,0.00042191,31]
[334245489,1722857456488,-500.0,0.00042191,31]
[334245490,1722857456498,-500.0,0.00042191,31]
[334245491,1722857456508,-500.0,0.00042191,31]
[334245492,1722857456518,-500.0,0.00042191,31]
[334245493,1722857456527,-616.76,0.00042191,31]
[334245494,1722857456538,-634.73,0.00042191,31]
[334245495,1722857456547,-676.02,0.00042191,31]
[334245496,1722857456557,-1319.66,0.00042191,31]
[334245497,1722857456567,-860.58,0.00042191,31]
[334245498,1722857456578,-4406.95,0.00042191,31]
[334245499,1722857456587,-723.86,0.00042191,31]
[334245500,1722857456599,-500.0,0.00042191,31]
[334245501,1722857456608,-545.59,0.00042191,31]
[334245502,1722857456618,-1912.22,0.00042191,31]
[334245503,1722857456635,-1166.14,0.00042191,31]
[334245504,1722857456645,-580.92,0.00042191,31]
[334245505,1722857456654,-500.0,0.00042191,31]
[334245506,1722857456664,-500.0,0.00042191,31]
[334245507,1722857456673,-1187.22,0.00042191,31]
[334245508,1722857456683,-6688.44,0.00042191,120]
[334245509,1722857456693,-640.11,0.00042191,31]
[334245510,1722857456703,-500.0,0.00042191,31]
[334245511,1722857456712,-500.0,0.00042191,31]
[334245512,1722857456722,-500.0,0.00042191,31]
[334245513,1722857456731,-500.0,0.00042191,31]
[334245514,1722857456741,-515.69,0.00042191,31]
[334245515,1722857456750,-500.0,0.00042191,31]
[334245516,1722857456759,-1833.4,0.00042191,31]
[334245517,1722857456770,-985.02,0.00042191,31]
[334245518,1722857456779,-506.55718278,0.00042191,31]
[334245519,1722857456789,-500.0,0.00042191,31]
[334245520,1722857456799,-500.0,0.00042191,31]
[334245521,1722857456809,-500.73758951,0.00042191,31]
[334245522,1722857456819,-849.49,0.00042191,31]
[334245523,1722857456828,-500.0,0.00042191,31]
[334245524,1722857456837,-1547.37,0.00042191,31]
[334245525,1722857456847,-179.54999297,0.00042191,31]
[334245526,1722857456856,-500.0,0.00042191,31]
[334245527,1722857456865,-642.99,0.00042191,31]
[334245528,1722857456880,-1127.03,0.00042191,31]
[334245529,1722857456890,-500.0,0.00042191,31]
[334245530,1722857456900,-478.74,0.000422,14]
[334245531,1722857457031,-7238.3,0.000422,14]
[334245532,1722857457042,-1675.03067934,0.000424,120]
[334245533,1722857457053,-152.0,0.00042592,31]
[334245534,1722857457062,-155.0,0.0004263,48]
[334245535,1722857457071,-2356.8,0.00042638,31]
[334245536,1722857457081,-2356.8,0.00042638,31]
[334245537,1722857457091,-2356.8,0.00042638,31]
[334245538,1722857457100,-2356.8,0.00042638,31]
[334245539,1722857457109,-2356.93,0.00042638,31]
[334245540,1722857457118,-2756.09,0.00042639,60]
[334245541,1722857457133,-5112.575,0.0004264,120]
[334245542,1722857457143,-521.47,0.00042738,31]
[334245543,1722857457152,-500.0,0.00042738,31]
[334245544,1722857457163,-1013.95,0.00042738,31]
[334245545,1722857457172,-1029.15,0.00042738,31]
[334245546,1722857457182,-2650.27,0.00042738,31]
[334245547,1722857457191,-703.06,0.00042738,31]
[334245548,1722857457201,-500.0,0.00042738,31]
[334245549,1722857457210,-501.86204636,0.00042738,31]
[334245550,1722857457220,-2756.09,0.00042738,60]
[334245551,1722857457230,-2756.09,0.00042738,60]
[334245552,1722857457239,-500.0,0.00042739,31]
[334245553,1722857457249,-500.0,0.00042739,31]
[334245554,1722857457259,-500.0,0.00042739,31]
[334245555,1722857457269,-500.0,0.00042739,31]
[334245556,1722857457279,-500.0,0.00042739,31]
[334245557,1722857457288,-895.69,0.00042739,31]
[334245558,1722857457298,-500.0,0.00042739,31]
[334245559,1722857457308,-1359.68,0.00042739,31]
[334245560,1722857457318,-500.0,0.00042739,31]
[334245561,1722857457327,-500.0,0.00042739,31]
[334245562,1722857457338,-500.0,0.00042739,31]
[334245563,1722857457347,-500.0,0.00042739,31]
[334245564,1722857457357,-500.0,0.00042739,31]
[334245565,1722857457367,-500.0,0.00042739,31]
[334245566,1722857457382,-225.09668857,0.00042739,31]
[334245567,1722857457392,-500.0,0.00042739,31]
[334245568,1722857457401,-500.0,0.00042739,31]
[334245569,1722857457410,-500.0,0.00042739,31]
[334245570,1722857457420,-500.0,0.00042739,31]
[334245571,1722857457429,-500.0,0.00042739,31]
[334245572,1722857457440,-887.72,0.00042739,31]
[334245573,1722857457450,-771.86,0.00042739,31]
[334245574,1722857457460,-500.0,0.00042739,31]
[334245575,1722857457470,-500.0,0.00042739,31]
[334245576,1722857457479,-719.7,0.00042739,31]
[334245577,1722857457489,-500.0,0.00042739,31]
[334245578,1722857457498,-500.0,0.00042739,31]
[334245579,1722857457508,-500.0,0.00042739,31]
[334245580,1722857457517,-500.0,0.00042739,31]
[334245581,1722857457527,-500.0,0.00042739,31]
[334245582,1722857457536,-849.36,0.00042739,31]
[334245583,1722857457546,-806.85,0.00042739,31]
[334245584,1722857457556,-1086.89,0.00042739,31]
[334245585,1722857457566,-500.0,0.00042739,31]
[334245586,1722857457576,-500.0,0.00042739,31]
[334245587,1722857457586,-910.93,0.00042739,31]
[334245588,1722857457595,-1276.5,0.00042739,31]
[334245589,1722857457610,-505.33,0.00042739,31]
[334245590,1722857457620,-500.0,0.00042739,31]
[334245591,1722857457633,-500.0,0.00042739,31]
[334245592,1722857457643,-894.21,0.00042739,31]
[334245593,1722857457654,-500.0,0.00042739,31]
[334245594,1722857457663,-362.11131788,0.00042739,31]
[334245595,1722857457672,-500.0,0.00042739,31]
[334245596,1722857457684,-556.09,0.00042739,31]
[334245597,1722857457693,-1082.36,0.00042739,31]
[334245598,1722857457703,-500.0,0.00042739,31]
[334245599,1722857457713,-500.0,0.00042739,31]
[334245600,1722857457723,-500.0,0.00042739,30]
[334245601,1722857457733,-940.39,0.00042739,31]
[334245602,1722857457743,-500.0,0.00042739,31]
[334245603,1722857457753,-500.0,0.00042739,31]
[334245604,1722857457762,-500.0,0.00042739,31]
[334245605,1722857457773,-1098.73,0.00042739,31]
[334245606,1722857457783,-500.0,0.00042739,31]
[334245607,1722857457793,-500.0,0.00042739,31]
[334245608,1722857457803,-500.0,0.00042739,31]
[334245609,1722857457813,-500.0,0.00042739,31]
[334245610,1722857457823,-518.2757592,0.00042739,31]
[334245611,1722857457833,-200.0,0.00042739,7]
[334245612,1722857457843,-530.37,0.00042739,31]
[334245613,1722857457853,-500.0,0.00042739,31]
[334245614,1722857457863,-500.0,0.00042739,31]
[334245615,1722857457873,-500.0,0.00042739,31]
[334245616,1722857457891,-500.0,0.00042739,31]
[334245617,1722857457900,-1336.64,0.00042739,31]
[334245618,1722857457910,-500.0,0.00042739,31]
[334245619,1722857457919,-500.0,0.00042739,31]
[334245620,1722857457929,-500.0,0.00042739,31]
[334245621,1722857457938,-500.0,0.00042739,31]
[334245622,1722857457947,-500.0,0.00042739,31]
[334245623,1722857457957,-1374.17,0.00042739,31]
[334245624,1722857457966,-500.0,0.00042739,31]
[334245625,1722857457975,-629.74,0.00042739,31]
[334245626,1722857457984,-500.0,0.00042739,31]
[334245627,1722857457994,-500.0,0.00042739,31]
[334245628,1722857458003,-500.0,0.00042739,31]
[334245629,1722857458013,-519.05,0.00042739,31]
[334245630,1722857458022,-294.65137535,0.00042739,31]
[334245631,1722857458032,-500.0,0.00042739,31]
[334245632,1722857458041,-500.0,0.00042739,31]
[334245633,1722857458051,-669.0,0.00042739,31]
[334245634,1722857458060,-500.0,0.00042739,31]
[334245635,1722857458069,-500.0,0.00042739,31]
[334245636,1722857458079,-1304.72,0.00042739,120]
[334245637,1722857458088,-500.0,0.00042739,31]
[334245638,1722857458097,-500.0,0.00042739,31]
[334245639,1722857458107,-500.0,0.00042739,31]
[334245640,1722857458116,-500.0,0.00042739,31]
[334245641,1722857458129,-500.0,0.00042739,31]
[334245642,1722857458138,-1164.71,0.00042739,31]
[334245643,1722857458148,-943.44,0.00042739,31]
[334245644,1722857458157,-500.0,0.00042739,31]
[334245645,1722857458166,-744.2,0.00042739,31]
[334245646,1722857458176,-1086.27,0.00042739,31]
[334245647,1722857458185,-937.46,0.00042739,31]
[334245648,1722857458194,-339.46183394,0.00042739,31]
[334245649,1722857458204,-681.23,0.00042739,31]
[334245650,1722857458213,-500.0,0.00042739,31]
[334245651,1722857458222,-930.57,0.00042739,31]
[334245652,1722857458232,-500.0,0.00042739,31]
[334245653,1722857458241,-699.6,0.00042739,31]
[334245654,1722857458251,-500.0,0.00042739,31]
[334245655,1722857458261,-500.0,0.00042739,31]
[334245656,1722857458270,-970.65,0.00042739,31]
[334245657,1722857458282,-500.0,0.00042739,31]
[334245658,1722857458292,-500.0,0.00042739,31]
[334245659,1722857458302,-527.93,0.00042739,31]
[334245660,1722857458312,-500.0,0.00042739,31]
[334245661,1722857458321,-500.0,0.00042739,31]
[334245662,1722857458331,-678.56,0.00042739,31]
[334245663,1722857458341,-694.73,0.00042739,31]
[334245664,1722857458350,-500.0,0.00042739,31]
[334245665,1722857458360,-500.0,0.00042739,31]
[334245666,1722857458369,-1469.45,0.00042739,31]
[334245667,1722857458383,-500.0,0.00042739,31]
[334245668,1722857458392,-500.0,0.00042739,31]
[334245669,1722857458402,-500.0,0.00042739,31]
[334245670,1722857458411,-500.0,0.00042739,31]
[334245671,1722857458421,-500.0,0.00042739,31]
[334245672,1722857458430,-500.0,0.00042739,7]
[334245673,1722857458439,-500.0,0.00042739,31]
[334245674,1722857458449,-500.0,0.00042739,31]
[334245675,1722857458459,-500.0,0.00042739,31]
[334245676,1722857458469,-500.0,0.00042739,31]
[334245677,1722857458479,-500.0,0.00042739,31]
[334245678,1722857458488,-500.0,0.00042739,31]
[334245679,1722857458497,-1696.6,0.00042739,31]
[334245680,1722857458507,-1346.69,0.00042739,31]
[334245681,1722857458516,-500.0,0.00042739,31]
[334245682,1722857458525,-500.0,0.00042739,31]
[334245683,1722857458534,-500.0,0.00042739,31]
[334245684,1722857458543,-1007.11,0.00042739,31]
[334245685,1722857458552,-500.0,0.00042739,31]
[334245686,1722857458562,-318.31837103,0.00042739,31]
[334245687,1722857458571,-500.0,0.00042739,31]
[334245688,1722857458581,-2461.13,0.00042739,31]
[334245689,1722857458590,-500.0,0.00042739,31]
[334245690,1722857458600,-1250.73,0.00042739,31]
[334245691,1722857458613,-556.88,0.00042739,31]
[334245692,1722857458622,-812.88,0.00042739,31]
[334245693,1722857458634,-500.0,0.00042739,31]
[334245694,1722857458643,-500.0,0.00042739,31]
[334245695,1722857458652,-500.0,0.00042739,31]
[334245696,1722857458662,-1520.75,0.00042739,31]
[334245697,1722857458672,-4695.83,0.00042739,31]
[334245698,1722857458682,-1135.4,0.00042739,31]
[334245699,1722857458692,-500.0,0.00042739,31]
[334245700,1722857458702,-500.0,0.00042739,31]
[334245701,1722857458712,-550.13,0.00042739,31]
[334245702,1722857458721,-500.0,0.00042739,31]
[334245703,1722857458731,-1006.52,0.00042739,31]
[334245704,1722857458741,-500.0,0.00042739,31]
[334245705,1722857458750,-517.75,0.00042739,31]
[334245706,1722857458759,-943.74,0.00042739,31]
[334245707,1722857458769,-500.0,0.00042739,31]
[334245708,1722857458778,-1202.14,0.00042739,31]
[334245709,1722857458787,-500.0,0.00042739,31]
[334245710,1722857458796,-979.78,0.00042739,31]
[334245711,1722857458806,-500.0,0.00042739,31]
[334245712,1722857458815,-500.0,0.00042739,31]
[334245713,1722857458824,-1657.05,0.00042739,31]
[334245714,1722857458833,-500.0,0.00042739,31]
[334245715,1722857458842,-12120.82,0.00042739,31]
[334245716,1722857458851,-657.66,0.00042739,31]
[334245717,1722857458861,-2349.69,0.00042739,31]
[334245718,1722857458870,-1301.3,0.00042739,31]
[334245719,1722857458884,-2946.09,0.00042739,21]
[334245720,1722857458897,-733.55,0.00042739,31]
[334245721,1722857458906,-500.0,0.00042739,31]
[334245722,1722857458915,-500.0,0.00042739,31]
[334245723,1722857458925,-892.96,0.00042739,31]
[334245724,1722857458934,-500.0,0.00042739,31]
[334245725,1722857458943,-768.74,0.00042739,31]
[334245726,1722857458952,-1769.88,0.00042739,31]
[334245727,1722857458961,-1936.8,0.00042739,31]
[334245728,1722857458970,-898.41,0.00042739,31]
[334245729,1722857458979,-500.0,0.00042739,31]
[334245730,1722857458988,-500.0,0.00042739,31]
[334245731,1722857458997,-2906.96,0.00042739,31]
[334245732,1722857459008,-3090.56,0.00042739,31]
[334245733,1722857459017,-554.05620877,0.00042739,31]
[334245734,1722857459027,-500.0,0.00042739,31]
[334245735,1722857459037,-654.09,0.00042739,31]
[334245736,1722857459046,-733.41,0.00042739,31]
[334245737,1722857459055,-505.76,0.00042739,31]
[334245738,1722857459065,-500.0,0.00042739,31]
[334245739,1722857459074,-500.0,0.00042739,31]
[334245740,1722857459083,-500.0,0.00042739,31]
[334245741,1722857459093,-500.0,0.00042739,31]
[334245742,1722857459103,-500.0,0.00042739,31]
[334245743,1722857459113,-906.23,0.00042739,31]
[334245744,1722857459122,-500.0,0.00042739,31]
[334245745,1722857459139,-286.52029412,0.00042739,31]
[334245746,1722857459148,-500.0,0.00042739,31]
[334245747,1722857459157,-500.0,0.00042739,31]
[334245748,1722857459167,-500.0,0.00042739,31]
[334245749,1722857459176,-500.0,0.00042739,31]
[334245750,1722857459186,-616.76,0.00042739,31]
[334245751,1722857459196,-634.73,0.00042739,31]
[334245752,1722857459206,-1319.66,0.00042739,31]
[334245753,1722857459215,-676.02,0.00042739,31]
[334245754,1722857459224,-860.58,0.00042739,31]
[334245755,1722857459233,-4406.95,0.00042739,31]
[334245756,1722857459243,-723.86,0.00042739,31]
[334245757,1722857459252,-214.51574338,0.00042739,31]
[334245758,1722857459262,-545.59,0.00042739,31]
[334245759,1722857459271,-1912.22,0.00042739,31]
[334245760,1722857459281,-1166.14,0.00042739,31]
[334245761,1722857459290,-580.92,0.00042739,31]
[334245762,1722857459300,-500.0,0.00042739,31]
[334245763,1722857459310,-500.0,0.00042739,31]
[334245764,1722857459319,-1187.22,0.00042739,31]
[334245765,1722857459330,-6688.44,0.00042739,120]
[334245766,1722857459340,-640.11,0.00042739,31]
[334245767,1722857459349,-500.0,0.00042739,31]
[334245768,1722857459359,-500.0,0.00042739,31]
[334245769,1722857459368,-500.0,0.00042739,31]
[334245770,1722857459381,-500.0,0.00042739,31]
[334245771,1722857459390,-515.69,0.00042739,31]
[334245772,1722857459399,-500.0,0.00042739,31]
[334245773,1722857459409,-1833.4,0.00042739,31]
[334245774,1722857459418,-985.02,0.00042739,31]
[334245775,1722857459427,-500.0,0.00042739,31]
[334245776,1722857459437,-500.0,0.00042739,31]
[334245777,1722857459446,-849.49,0.00042739,31]
[334245778,1722857459456,-500.0,0.00042739,31]
[334245779,1722857459465,-1547.37,0.00042739,31]
[334245780,1722857459475,-500.0,0.00042739,31]
[334245781,1722857459485,-642.99,0.00042739,31]
[334245782,1722857459495,-1127.03,0.00042739,31]
[334245783,1722857459504,-500.0,0.00042739,31]
[334245784,1722857459515,-2756.09,0.00042799,60]
[334245785,1722857459525,-4033.44511755,0.000428,60]
[334245786,1722857459534,-1322.76229835,0.000428,60]
[334245787,1722857459544,-1199.82910769,0.000428,60]
[334245788,1722857459554,-150.0,0.00043,60]
[334245789,1722857459563,-1000.0,0.00043,43]
[334245790,1722857459573,-152.0,0.00043032,31]
[334245791,1722857459583,-400.0,0.00043042,2]
[334245792,1722857459592,-150.112233,0.000431,9]
[334245793,1722857459603,-5112.574999,0.000432,120]
[334245794,1722857459612,-1241.77,0.00043286,31]
[334245795,1722857459622,-7504.31,0.00043286,31]
[334245796,1722857459636,-521.47,0.00043286,31]
[334245797,1722857459645,-500.0,0.00043286,31]
[334245798,1722857459654,-707.13,0.00043286,31]
[334245799,1722857459663,-1013.95,0.00043286,31]
[334245800,1722857459672,-1029.15,0.00043286,31]
[334245801,1722857459681,-2650.27,0.00043286,31]
[334245802,1722857459690,-500.0,0.00043286,31]
[334245803,1722857459700,-703.06,0.00043286,31]
[334245804,1722857459710,-561.45,0.00043286,31]
[334245805,1722857459719,-500.0,0.00043286,31]
[334245806,1722857459729,-2756.09,0.00043286,60]
[334245807,1722857459739,-2756.09,0.00043286,60]
[334245808,1722857459750,-1518.62961298,0.00043286,60]
[334245809,1722857461140,215.7100545,0.00032247,4]
[334245810,1722857461447,300.33038017,0.00032247,2]
[334245813,1722857479809,816.16582707,0.00032247,2]
[334245814,1722857480795,1184.32605921,0.00032247,4]
[334245815,1722857481656,269.63517677,0.00032247,4]
[334245816,1722857527244,1225.97589647,0.00032247,2]
[334245817,1722857531105,336.04335091,0.00021916,2]
[334245818,1722857544617,254.63533274,0.00032247,4]
[334245819,1722857550559,154.74467129,0.00025,2]
[334245821,1722858351132,-162.329732,0.00014247,2]
[334245822,1722858351155,-105.14218767,0.0002,2]
[334245823,1722858425114,-480.08660475,0.00019547,3]
[334245824,1722858429152,-1798.11791625,0.00019547,3]
[334245825,1722858429182,-51.21096787,0.0002,2]
[334245826,1722858429206,-1321.55756795,0.00021048,2]
[334245827,1722858429228,-154.82195475,0.00021642,2]
[334245828,1722858429252,-162.329732,0.00021918,2]
[334245829,1722858429276,-302.24446742,0.00022,2]
[334245830,1722858429299,-250.0,0.00022038,2]
[334245831,1722858429321,-302.24446742,0.0002222,2]
[334245832,1722858429346,-161.279722,0.00022309,2]
[334245833,1722858429369,-302.24446742,0.0002244,2]
[334245834,1722858429392,-302.24446742,0.0002266,2]
[334245835,1722858429421,-161.279722,0.00022696,2]
[334245836,1722858429444,-302.24446742,0.0002288,2]
[334245837,1722858429467,-161.279722,0.00023084,2]
[334245838,1722858429490,-453.36670112,0.000231,4]
[334245839,1722858429512,-453.36670112,0.0002332,4]
[334245840,1722858429536,-161.279722,0.00023471,2]
[334245841,1722858429558,-453.36670112,0.0002354,4]
[334245842,1722858429580,-453.36670112,0.0002376,4]
[334245843,1722858429602,-453.36670112,0.0002398,4]
[334245844,1722858429624,-300.0,0.00024669,2]
[334245845,1722858429648,-7300.65159999,0.0002467,2]
[334245846,1722858448121,-163.81599466,0.0002,15]
[334245847,1722858448144,-240.28360953,0.0002,2]
[334245848,1722858545178,-4403.27975338,0.0002,2]
[334245849,1722858545200,-230.28851249,0.0002,2]
[334245850,1722858545222,-1745.11195517,0.0002,2]
[334245851,1722858545243,-4181.02325297,0.0002,2]
[334245852,1722858545264,-302.81833017,0.00024547,2]
[334245853,1722858545285,-417.07812882,0.00024547,6]
[334245854,1722858546217,-187.41080601,0.00024547,6]
[334245855,1722858546243,-9839.81631661,0.0002467,2]
[334245856,1722858546266,-604.48893483,0.00024792,6]
[334245857,1722858546288,-1156.94944292,0.000249,2]
[334245858,1722858546311,-155.59865243,0.00025,2]
[334245859,1722858546333,-189.52144051,0.00025,2]
[334245860,1722858546355,-500.0,0.00025,30]
[334245861,1722858546377,-306.0,0.00025,30]
[334245862,1722858546399,-688.00624064,0.00025038,6]
[334245863,1722858546425,-402.3465429,0.00026589,2]
[334245864,1722858546450,-152.91,0.000266,31]
[334245865,1722858546472,-881.47696693,0.0002661,2]
[334245866,1722858546493,-160.54991199,0.00026619,2]
[334245867,1722858546515,-245.50525378,0.00026719,2]
[334245868,1722858546537,-230.385106,0.00027397,120]
[334245869,1722858546559,-162.329732,0.00029589,2]
[334245870,1722858546581,-151.0,0.0003,120]
[334245871,1722858546603,-151.0,0.0003,120]
[334245872,1722858546624,-250.0,0.0003,120]
[334245873,1722858546645,-9668.71085212,0.00030303,4]
[334245874,1722858546673,-152.91,0.000304,31]
[334245875,1722858546694,-1156.94944289,0.00030614,2]
[334245876,1722858546717,-169.221072,0.00030889,2]
[334245877,1722858546739,-200.0,0.00031182,15]
[334245878,1722858546762,-151.0,0.00031808,120]
[334245879,1722858546784,-250.0,0.00032,120]
[334245880,1722858546806,-284.83809153,0.00032247,3]